bitfinex/quotes_SOLUSD_20241029
["timestamp","ask_amount","ask_price","bid_price","bid_amount"]
[1730168875836,34.05437653,181.56,181.53,2.2199843]
[1730168876022,34.05437653,181.55,181.51,2.2199843]
[1730168876331,34.05437653,181.54,181.5,2.2199843]
[1730168876503,34.05437653,181.56,181.5,34.05437653]
[1730168876705,34.05437653,181.56,181.51,2.22063044]
[1730168877018,34.05437653,181.55,181.51,2.22063044]
[1730168877226,34.05437653,181.54,181.5,2.22063044]
[1730168877419,34.05437653,181.54,181.49,2.22063044]
[1730168878623,34.05437653,181.55,181.49,56.27500697]
[1730168878932,34.05437653,181.54,181.5,2.22063044]
[1730168879214,34.05437653,181.56,181.5,34.05437653]
[1730168879419,23.876884,181.57,181.52,34.05437653]
[1730168879622,34.05437653,181.56,181.5,34.05437653]
[1730168879834,34.05437653,181.59,181.53,34.05437653]
[1730168880228,36.6021,181.66,181.57,34.05437653]
[1730168880229,34.15437653,181.63,181.57,34.05437653]
[1730168880420,34.05437653,181.59,181.54,34.05437653]
[1730168880812,34.05437653,181.62,181.56,34.05437653]
[1730168881018,34.05437653,181.63,181.57,34.05437653]
[1730168881229,0.1,181.63,181.57,34.05437653]
[1730168881543,31.1971,181.66,181.53,34.05437653]
[1730168881544,34.05437653,181.64,181.59,34.05437653]
[1730168881721,31.0971,181.66,181.61,34.05437653]
[1730168882117,31.0971,181.66,181.64,34.05437653]
[1730168882442,9.2848,181.71,181.65,34.05437653]
[1730168882616,9.2848,181.71,181.66,34.05437653]
[1730168883518,9.2848,181.71,181.69,34.05437653]
[1730168883725,9.2848,181.71,181.67,34.05437653]
[1730168883927,9.2848,181.71,181.66,34.05437653]
[1730168884224,9.2848,181.71,181.67,34.05437653]
[1730168884424,0.1,181.7,181.65,34.05437653]
[1730168884830,9.2848,181.71,181.67,34.05437653]
[1730168885042,34.05437653,181.7,181.65,34.05437653]
[1730168885445,34.05437653,181.67,181.62,34.05437653]
[1730168885618,34.05437653,181.69,181.63,34.05437653]
[1730168885935,34.05437653,181.65,181.59,39.85695374]
[1730168886130,9.2848,181.71,181.57,3.240826]
[1730168886336,9.2848,181.71,181.67,34.05437653]
[1730168886517,1.5,181.72,181.67,34.05437653]
[1730168886833,34.05437653,181.71,181.65,34.05437653]
[1730168887336,34.05437653,181.71,181.6,7.12902843]
[1730168887337,1.5,181.72,181.67,34.05437653]
[1730168888117,1.5,181.72,181.7,34.05437653]
[1730168888823,1.5,181.72,181.71,34.05437653]
[1730168889037,1.5,181.72,181.71,54.05437653]
[1730168889218,1.5,181.72,181.71,56.25658615]
[1730168890950,1.5,181.72,181.71,63.38561458]
[1730168891244,1.5,181.72,181.71,56.25658615]
[1730168892331,1.5,181.72,181.71,97.43999111]
[1730168892526,1.5,181.72,181.71,63.38561458]
[1730168892734,1.5,181.72,181.71,56.25658615]
[1730168892922,1.5,181.72,181.71,20.0]
[1730168893426,1.5,181.72,181.68,34.05437653]
[1730168893747,1.5,181.72,181.65,7.12902843]
[1730168893748,1.5,181.72,181.7,34.05437653]
[1730168894042,1.5,181.72,181.69,34.05437653]
[1730168895036,35.55437653,181.72,181.67,34.05437653]
[1730168895240,35.55437653,181.72,181.66,20.0]
[1730168895241,1.5,181.72,181.69,34.05437653]
[1730168896468,1.5,181.72,181.7,34.05437653]
[1730168896742,1.5,181.72,181.71,34.05437653]
[1730168897120,1.5,181.72,181.71,54.05437653]
[1730168897638,1.5,181.72,181.7,34.05437653]
[1730168898048,1.5,181.72,181.71,34.05437653]
[1730168898619,1.5,181.72,181.7,34.05437653]
[1730168899450,1.5,181.72,181.69,34.05437653]
[1730168899630,35.55437653,181.72,181.7,2.20231865]
[1730168899829,10.419,181.72,181.67,36.256973]
[1730168900025,10.419,181.72,181.68,34.05437653]
[1730168900947,10.419,181.72,181.7,34.05437653]
[1730168901487,10.419,181.72,181.68,34.05437653]
[1730168902169,10.419,181.72,181.69,34.05437653]
[1730168902644,10.419,181.72,181.7,34.05437653]
[1730168902853,1.5,181.72,181.71,34.05437653]
[1730168903428,1.5,181.72,181.71,36.2565983]
[1730168903741,1.5,181.72,181.71,36.25661378]
[1730168903947,1.5,181.72,181.71,56.25661378]
[1730168904534,1.5,181.72,181.71,90.31099031]
[1730168906142,1.5,181.72,181.71,90.31056038]
[1730168906353,8.9521,181.79,181.72,20.0]
[1730168906652,8.9521,181.79,181.77,34.05437653]
[1730168906853,8.9521,181.79,181.78,34.05437653]
[1730168907059,8.9521,181.79,181.72,20.0]
[1730168907060,8.9521,181.79,181.77,34.05437653]
[1730168907955,8.9521,181.79,181.78,34.05437653]
[1730168908940,21.6806,181.82,181.78,34.05437653]
[1730168909124,21.6806,181.82,181.81,34.05437653]
[1730168909324,8.6742,181.83,181.81,34.05437653]
[1730168910638,0.3,181.84,181.82,34.05437653]
[1730168910945,0.3,181.84,181.83,34.05437653]
[1730168912749,0.3,181.84,181.83,54.05437653]
[1730168913050,1.09090909,181.85,181.83,54.05437653]
[1730168913253,1.09090909,181.85,181.84,54.05437653]
[1730168914249,0.3,181.9,181.85,20.0]
[1730168914455,0.3,181.9,181.89,54.05437653]
[1730168915731,0.3,181.9,181.89,20.0]
[1730168915934,0.3,181.9,181.87,34.05437653]
[1730168916145,0.3,181.9,181.89,34.05437653]
[1730168916349,0.3,181.9,181.88,34.05437653]
[1730168916736,0.3,181.9,181.87,34.05437653]
[1730168917134,0.3,181.9,181.86,34.05437653]
[1730168918456,0.3,181.9,181.85,34.05437653]
[1730168918638,0.3,181.9,181.86,34.05437653]
[1730168918840,34.35437653,181.9,181.84,34.05437653]
[1730168919257,34.05437653,181.89,181.83,34.05437653]
[1730168919559,34.35437653,181.9,181.85,34.05437653]
[1730168920133,0.3,181.9,181.89,34.05437653]
[1730168920536,0.3,181.9,181.88,34.05437653]
[1730168921352,0.3,181.9,181.88,20.0]
[1730168921539,0.3,181.9,181.86,34.05437653]
[1730168922057,0.3,181.9,181.89,34.05437653]
[1730168922235,0.3,181.9,181.87,34.05437653]
[1730168922442,0.3,181.9,181.85,34.05437653]
[1730168922636,0.3,181.9,181.86,34.05437653]
[1730168922841,0.3,181.9,181.85,34.05437653]
[1730168923044,0.3,181.9,181.86,34.05437653]
[1730168923358,0.3,181.9,181.85,34.05437653]
[1730168923560,0.3,181.9,181.83,34.05437653]
[1730168923561,57.83126053,181.89,181.83,34.05437653]
[1730168923859,34.05437653,181.87,181.81,34.05437653]
[1730168924157,34.05437653,181.87,181.82,34.05437653]
[1730168924346,34.05437653,181.88,181.82,34.05437653]
[1730168924659,21.2447415,181.86,181.8,21.2447415]
[1730168924859,21.2447415,181.87,181.81,21.2447415]
[1730168925048,21.2447415,181.87,181.82,21.2447415]
[1730168925236,21.2447415,181.88,181.82,21.2447415]
[1730168925656,21.2447415,181.87,181.82,21.2447415]
[1730168926245,21.2447415,181.85,181.8,21.2447415]
[1730168926446,21.2447415,181.85,181.81,20.0]
[1730168926657,21.2447415,181.84,181.79,21.2447415]
[1730168926862,21.2447415,181.8,181.78,2.20099971]
[1730168927043,45.0216255,181.79,181.72,5.73851834]
[1730168927237,21.2447415,181.76,181.7,21.2447415]
[1730168927457,21.2447415,181.71,181.66,7.93990227]
[1730168927671,21.2447415,181.69,181.59,10.91808393]
[1730168927862,21.2447415,181.68,181.63,21.2447415]
[1730168928068,21.2447415,181.72,181.66,21.2447415]
[1730168928366,45.0216255,181.72,181.66,21.2447415]
[1730168928534,34.05265903,181.74,181.68,34.05265903]
[1730168928735,8.5439,181.75,181.71,34.05265903]
[1730168928937,23.776884,181.78,181.73,34.05265903]
[1730168929151,57.82954303,181.78,181.72,34.05265903]
[1730168929354,23.776884,181.78,181.73,34.05265903]
[1730168929545,23.776884,181.79,181.75,34.05265903]
[1730168929759,30.9788,181.8,181.77,34.05265903]
[1730168930058,0.1,181.85,181.76,34.05265903]
[1730168930059,34.05265903,181.82,181.76,34.05265903]
[1730168930261,34.05265903,181.81,181.75,34.05265903]
[1730168930450,34.05265903,181.8,181.74,34.05265903]
[1730168930970,34.05265903,181.81,181.75,34.05265903]
[1730168931258,34.05265903,181.79,181.74,34.05265903]
[1730168931650,9.1974,181.84,181.74,34.05265903]
[1730168931651,34.05265903,181.8,181.74,34.05265903]
[1730168932045,34.05265903,181.79,181.74,34.05265903]
[1730168932359,34.05265903,181.8,181.75,34.05265903]
[1730168932856,23.776884,181.8,181.75,34.05265903]
[1730168933859,9.1974,181.84,181.76,34.05265903]
[1730168934061,34.05265903,181.87,181.81,34.05265903]
[1730168934437,34.05265903,181.88,181.82,34.05265903]
[1730168934639,34.05265903,181.88,181.83,34.05265903]
[1730168934950,34.05265903,181.87,181.81,34.05265903]
[1730168936147,34.05265903,181.86,181.8,34.05265903]
[1730168936855,34.05265903,181.85,181.79,34.05265903]
[1730168937069,34.05265903,181.83,181.77,34.05265903]
[1730168937356,57.82954303,181.82,181.76,34.05265903]
[1730168937577,34.05265903,181.81,181.75,34.05265903]
[1730168938137,34.05265903,181.8,181.74,34.05265903]
[1730168938343,34.05265903,181.81,181.76,34.05265903]
[1730168938558,34.05265903,181.79,181.73,39.79117737]
[1730168938860,34.05265903,181.81,181.75,34.05265903]
[1730168939175,23.776884,181.8,181.76,34.05265903]
[1730168939457,57.82954303,181.81,181.75,34.05265903]
[1730168939671,34.05265903,181.8,181.75,34.05265903]
[1730168940638,34.05265903,181.79,181.73,34.05265903]
[1730168940841,34.05265903,181.8,181.74,34.05265903]
[1730168941141,57.82954303,181.81,181.75,34.05265903]
[1730168941543,34.05265903,181.82,181.76,34.05265903]
[1730168941769,34.05265903,181.83,181.77,34.05265903]
[1730168941965,34.05265903,181.85,181.79,34.05265903]
[1730168942545,34.05265903,181.84,181.78,34.05265903]
[1730168942747,34.05265903,181.83,181.78,34.05265903]
[1730168943470,34.05265903,181.84,181.78,34.05265903]
[1730168944048,34.05265903,181.79,181.74,34.05265903]
[1730168944842,34.05265903,181.8,181.74,34.05265903]
[1730168945047,34.05265903,181.84,181.79,34.05265903]
[1730168945270,23.776884,181.84,181.79,34.05265903]
[1730168945565,34.05265903,181.86,181.8,34.05265903]
[1730168946261,34.05265903,181.89,181.83,34.05265903]
[1730168946470,0.3,181.9,181.84,34.05265903]
[1730168946471,34.35265903,181.9,181.84,34.05265903]
[1730168946667,34.05265903,181.89,181.83,34.05265903]
[1730168947564,33.05265903,181.89,181.83,34.05265903]
[1730168947870,34.35265903,181.9,181.84,34.05265903]
[1730168948870,34.05265903,181.89,181.84,34.05265903]
[1730168949050,34.05265903,181.89,181.83,34.05265903]
[1730168950474,0.3,181.9,181.86,34.05265903]
[1730168950642,0.3,181.9,181.87,34.05265903]
[1730168950846,0.3,181.9,181.86,34.05265903]
[1730168951474,0.3,181.9,181.8,9.95331121]
[1730168951671,34.35265903,181.9,181.84,34.05265903]
[1730168951853,0.3,181.9,181.86,34.05265903]
[1730168952368,0.3,181.9,181.87,34.05265903]
[1730168952572,0.3,181.9,181.86,34.05265903]
[1730168953058,34.35265903,181.9,181.84,34.05265903]
[1730168953257,34.05265903,181.87,181.81,34.05265903]
[1730168953570,34.05265903,181.89,181.83,34.05265903]
[1730168953967,0.3,181.9,181.85,34.05265903]
[1730168954151,34.05265903,181.89,181.83,34.05265903]
[1730168954558,34.35265903,181.9,181.84,34.05265903]
[1730168954967,34.05265903,181.89,181.83,34.05265903]
[1730168955373,34.05265903,181.87,181.81,34.05265903]
[1730168955548,34.05265903,181.88,181.82,34.05265903]
[1730168955749,34.05265903,181.88,181.83,2.20085575]
[1730168956151,34.35265903,181.9,181.84,34.05265903]
[1730168956346,0.3,181.9,181.86,34.05265903]
[1730168956546,0.3,181.9,181.85,34.05265903]
[1730168957357,0.3,181.9,181.88,34.05265903]
[1730168957777,0.3,181.9,181.85,34.05265903]
[1730168957953,0.3,181.9,181.86,36.25320957]
[1730168958277,34.35265903,181.9,181.84,34.05265903]
[1730168958447,0.3,181.9,181.86,34.05265903]
[1730168958949,0.3,181.9,181.85,34.05265903]
[1730168959149,0.3,181.9,181.86,34.05265903]
[1730168959574,0.3,181.9,181.88,34.05265903]
[1730168959959,0.3,181.9,181.87,34.05265903]
[1730168960568,0.3,181.9,181.88,2.2003579]
[1730168960755,0.3,181.9,181.88,2.20035765]
[1730168960961,0.3,181.9,181.87,34.05265903]
[1730168961370,0.3,181.9,181.88,34.05265903]
[1730168961554,0.3,181.9,181.89,34.05265903]
[1730168962474,0.3,181.9,181.88,34.05265903]
[1730168963464,0.3,181.9,181.87,34.05265903]
[1730168964660,0.3,181.9,181.88,34.05265903]
[1730168965373,34.35265903,181.9,181.84,34.05265903]
[1730168965571,34.35265903,181.9,181.81,9.283]
[1730168965572,0.3,181.9,181.85,36.25303149]
[1730168965778,0.3,181.9,181.87,34.05265903]
[1730168965964,0.3,181.9,181.89,34.05265903]
[1730168966162,0.3,181.9,181.87,34.05265903]
[1730168966366,0.3,181.9,181.88,2.20025468]
[1730168967958,0.3,181.9,181.88,36.25291371]
[1730168968283,0.3,181.9,181.88,34.05265903]
[1730168968891,0.3,181.9,181.85,34.05265903]
[1730168969179,0.3,181.9,181.86,2.20040458]
[1730168969382,0.3,181.9,181.86,36.25306361]
[1730168969559,0.3,181.9,181.86,34.05265903]
[1730168970165,34.05265903,181.89,181.82,20.0]
[1730168970362,34.05265903,181.89,181.83,34.05265903]
[1730168970674,21.24152113,181.89,181.84,23.44192197]
[1730168970866,0.3,181.9,181.85,21.24152113]
[1730168971258,0.3,181.9,181.87,21.24152113]
[1730168971453,0.3,181.9,181.86,21.24152113]
[1730168971678,0.3,181.9,181.87,21.24152113]
[1730168972159,0.3,181.9,181.86,21.24152113]
[1730168972676,0.3,181.9,181.86,33.97613009]
[1730168973092,0.3,181.9,181.89,33.97613009]
[1730168973379,0.3,181.9,181.87,33.97613009]
[1730168974163,0.3,181.9,181.86,33.97613009]
[1730168974384,0.3,181.9,181.85,33.97613009]
[1730168975258,33.97613009,181.89,181.84,33.97613009]
[1730168975459,34.27613009,181.9,181.85,2.20054689]
[1730168975987,0.3,181.9,181.85,36.17667698]
[1730168976185,0.3,181.9,181.85,33.97613009]
[1730168976371,0.3,181.9,181.87,33.97613009]
[1730168976574,0.3,181.9,181.85,33.97613009]
[1730168977584,34.27613009,181.9,181.85,33.97613009]
[1730168978088,0.3,181.9,181.85,33.97613009]
[1730168978272,0.3,181.9,181.86,36.17652528]
[1730168978473,0.3,181.9,181.87,33.97613009]
[1730168978668,0.3,181.9,181.88,33.97613009]
[1730168979187,0.3,181.9,181.89,33.97613009]
[1730168979388,0.3,181.9,181.88,33.97613009]
[1730168979886,0.3,181.9,181.89,36.17621036]
[1730168980265,0.3,181.9,181.89,36.17617344]
[1730168980679,0.3,181.9,181.89,33.97613009]
[1730168981269,0.3,181.9,181.89,36.17621499]
[1730168981494,0.6139017,181.97,181.89,70.15234508]
[1730168981675,0.6139017,181.97,181.85,5.73851834]
[1730168981676,33.97613009,181.96,181.9,36.17621499]
[1730168981883,34.59003179,181.97,181.91,33.97613009]
[1730168982078,0.6139017,181.97,181.92,33.97613009]
[1730168983081,0.6139017,181.97,181.94,33.97613009]
[1730168983284,0.6139017,181.97,181.92,33.97613009]
[1730168983467,34.09003179,181.97,181.91,33.97613009]
[1730168984185,34.09003179,181.97,181.92,33.97613009]
[1730168984699,0.1139017,181.97,181.92,33.97613009]
[1730168984895,34.09003179,181.97,181.92,33.97613009]
[1730168985073,33.97613009,181.96,181.9,33.97613009]
[1730168985274,34.09003179,181.97,181.91,33.97613009]
[1730168985780,0.1139017,181.97,181.92,33.97613009]
[1730168986285,34.09003179,181.97,181.91,33.97613009]
[1730168989003,0.1139017,181.97,181.94,33.97613009]
[1730168989201,0.1139017,181.97,181.93,33.97613009]
[1730168989780,0.1139017,181.97,181.94,33.97613009]
[1730168989996,0.1139017,181.97,181.96,33.97613009]
[1730168990282,0.1139017,181.97,181.95,33.97613009]
[1730168990481,0.1139017,181.97,181.94,33.97613009]
[1730168990781,0.1139017,181.97,181.95,33.97613009]
[1730168990998,0.1139017,181.97,181.94,33.97613009]
[1730168991193,0.1139017,181.97,181.93,33.97613009]
[1730168991530,0.1139017,181.97,181.95,33.97613009]
[1730168991904,0.1139017,181.97,181.96,33.97613009]
[1730168992098,27.725707,182.0,181.99,33.97613009]
[1730168992410,276.96116333,182.0,181.99,20.06415871]
[1730168992588,210.99027622,182.0,181.99,54.0402888]
[1730168992996,210.99027622,182.0,181.99,47.01759754]
[1730168993192,127.0193891,182.0,181.99,47.01759754]
[1730168993387,120.62047001,182.0,181.99,47.11759754]
[1730168993590,120.62047001,182.0,181.99,69.07919754]
[1730168993591,49.92964558,182.0,181.99,69.07919754]
[1730168993986,33.97613009,182.1,182.01,33.97613009]
[1730168994190,34.69003179,182.16,182.06,33.97613009]
[1730168994191,0.6139017,182.16,182.06,33.97613009]
[1730168994409,33.97613009,182.12,182.06,33.97613009]
[1730168994592,21.18569327,182.12,182.06,21.18569327]
[1730168995117,21.18569327,182.14,182.08,21.18569327]
[1730168995605,21.79959497,182.16,182.1,21.18569327]
[1730168995780,21.18569327,182.15,182.09,21.18569327]
[1730168995979,21.18569327,182.13,182.07,21.18569327]
[1730168996203,21.18569327,182.1,182.02,5.73851834]
[1730168996412,21.18569327,182.08,182.03,21.18569327]
[1730168996584,21.18569327,182.14,182.07,21.18569327]
[1730168996779,0.6139017,182.16,182.03,75.73851834]
[1730168996981,21.18569327,182.12,182.06,21.18569327]
[1730168997712,0.6139017,182.16,182.05,21.18569327]
[1730168997713,21.18569327,182.11,182.05,21.18569327]
[1730168999006,21.18569327,182.1,182.04,21.18569327]
[1730168999706,21.18569327,182.11,182.05,21.18569327]
[1730168999909,21.18569327,182.1,182.04,21.18569327]
[1730169000294,21.18569327,182.1,182.02,10.0499516]
[1730169000295,21.18569327,182.11,182.05,21.18569327]
[1730169000706,21.18569327,182.06,182.02,3.15144694]
[1730169000914,21.18569327,182.05,181.99,26.92421161]
[1730169001208,44.29979327,182.09,182.03,21.18569327]
[1730169002006,21.18569327,182.08,182.03,21.18569327]
[1730169002196,22.2173,182.14,182.01,21.18569327]
[1730169002399,21.18569327,182.08,182.02,21.18569327]
[1730169002910,21.18569327,182.09,182.03,21.18569327]
[1730169003107,21.18569327,182.08,182.02,21.18569327]
[1730169003402,21.18569327,182.05,181.99,29.96697938]
[1730169003584,21.18569327,182.07,182.02,21.18569327]
[1730169003785,21.18569327,182.05,181.99,29.96697938]
[1730169003995,21.18569327,182.04,181.99,8.78128611]
[1730169004595,21.18569327,182.05,181.99,29.96697938]
[1730169005003,21.18569327,182.06,182.0,21.18569327]
[1730169005213,21.18569327,182.07,182.02,21.18569327]
[1730169005414,22.2173,182.14,182.01,70.0]
[1730169005586,21.18569327,182.03,182.02,7.24746176]
[1730169005789,21.18569327,182.03,181.99,3.04276777]
[1730169006095,21.18569327,182.04,181.98,21.18569327]
[1730169006297,21.18569327,182.04,181.99,21.18569327]
[1730169006506,22.2173,182.14,182.03,21.18569327]
[1730169006708,22.2173,182.14,182.04,21.18569327]
[1730169006911,21.18569327,182.1,182.05,21.18569327]
[1730169007211,21.18569327,182.09,182.04,5.99224959]
[1730169007596,21.18569327,182.08,182.04,5.99224959]
[1730169008111,21.18569327,182.09,182.04,27.17794286]
[1730169008410,21.18569327,182.07,182.04,5.99224959]
[1730169009111,21.18569327,182.07,182.01,21.18569327]
[1730169009316,21.18569327,182.03,181.97,30.42419327]
[1730169009611,0.1,182.12,181.97,30.42419327]
[1730169009612,21.18569327,182.04,181.99,21.18569327]
[1730169009794,21.18569327,182.09,182.03,21.18569327]
[1730169009989,21.18569327,182.05,181.99,21.18569327]
[1730169010424,21.18569327,182.03,181.98,21.18569327]
[1730169010609,21.18569327,182.04,181.98,21.18569327]
[1730169012412,21.18569327,182.03,181.97,21.18569327]
[1730169012790,21.18569327,182.01,181.95,23.38482352]
[1730169013002,21.18569327,181.99,181.96,0.98]
[1730169013199,21.18569327,181.97,181.95,3.04231163]
[1730169013392,21.18569327,181.96,181.89,2.19913025]
[1730169013600,21.18569327,181.96,181.91,21.18569327]
[1730169013815,21.18569327,181.95,181.89,21.18569327]
[1730169014121,21.18569327,181.96,181.91,21.18569327]
[1730169014293,21.18569327,181.95,181.9,0.98]
[1730169014500,21.18569327,181.91,181.87,2.19913025]
[1730169014702,21.18569327,181.9,181.86,3.06381317]
[1730169014992,21.18569327,181.9,181.84,21.18569327]
[1730169015192,21.718,181.95,181.84,21.18569327]
[1730169015418,21.18569327,181.9,181.84,21.18569327]
[1730169015587,21.18569327,181.91,181.85,21.18569327]
[1730169015988,21.18569327,181.91,181.82,2.19913025]
[1730169015989,21.18569327,181.93,181.87,21.18569327]
[1730169016221,21.18569327,181.89,181.84,2.19913025]
[1730169016407,21.18569327,181.9,181.84,21.18569327]
[1730169016594,21.18569327,181.87,181.82,2.19913025]
[1730169016788,21.618,181.95,181.81,24.35549615]
[1730169016789,21.18569327,181.86,181.81,24.35549615]
[1730169016989,21.18569327,181.87,181.81,21.18569327]
[1730169017215,21.18569327,181.86,181.8,23.38482352]
[1730169017404,0.1,181.93,181.8,23.38482352]
[1730169017405,21.18569327,181.85,181.8,2.19913025]
[1730169018000,21.18569327,181.85,181.8,21.18569327]
[1730169018190,21.18569327,181.85,181.8,24.30712475]
[1730169018715,21.18569327,181.86,181.81,21.18569327]
[1730169019014,21.18569327,181.9,181.84,21.18569327]
[1730169019217,21.18569327,181.91,181.85,21.18569327]
[1730169019815,21.18569327,181.9,181.85,21.18569327]
[1730169020020,21.618,181.95,181.88,21.18569327]
[1730169020194,21.618,181.95,181.9,21.18569327]
[1730169020593,30.20229327,181.98,181.93,21.18569327]
[1730169020792,43.17709327,182.0,181.95,21.18569327]
[1730169021013,21.18569327,181.98,181.92,24.24663206]
[1730169021196,21.18569327,181.97,181.92,3.06093879]
[1730169021395,21.18569327,181.97,181.92,21.18569327]
[1730169021598,21.18569327,181.98,181.92,21.18569327]
[1730169021904,21.18569327,181.98,181.89,2.20041215]
[1730169021905,21.18569327,182.02,181.96,21.18569327]
[1730169022104,42.69249327,182.04,181.98,21.18569327]
[1730169022405,42.69249327,182.04,181.99,21.18569327]
[1730169022608,21.5068,182.04,182.0,33.92566463]
[1730169022910,1.1,182.14,181.94,70.1]
[1730169022911,29.1408,182.09,182.02,33.92566463]
[1730169023114,30.1408,182.14,182.07,33.92566463]
[1730169023317,33.92566463,182.13,182.08,33.92566463]
[1730169023624,33.92566463,182.1,182.04,33.92566463]
[1730169023796,33.92566463,182.07,182.01,33.92566463]
[1730169024002,33.92566463,182.08,181.99,5.39317491]
[1730169024203,33.92566463,182.12,182.06,33.92566463]
[1730169024523,33.92566463,182.11,182.06,33.92566463]
[1730169024693,33.92566463,182.11,182.05,33.92566463]
[1730169024893,33.92566463,182.11,182.0,70.0]
[1730169024894,33.92566463,182.08,182.02,33.92566463]
[1730169025110,33.92566463,182.09,182.03,33.92566463]
[1730169025318,30.1408,182.14,182.08,33.92566463]
[1730169025523,1.0,182.14,182.1,33.92566463]
[1730169025721,1.0,182.14,182.06,70.0]
[1730169025722,1.0,182.14,182.11,33.92566463]
[1730169025919,1.0,182.14,182.06,70.0]
[1730169025920,34.92566463,182.14,182.09,33.92566463]
[1730169026107,1.0,182.14,182.1,33.92566463]
[1730169026300,1.0,182.14,182.09,33.92566463]
[1730169026516,33.92566463,182.13,182.03,70.0]
[1730169026731,33.92566463,182.13,182.0,7.14034244]
[1730169026732,1.0,182.14,182.12,33.92566463]
[1730169026906,1.0,182.14,182.09,70.0]
[1730169026907,1.0,182.14,182.13,33.92566463]
[1730169027406,1.0,182.14,182.03,70.0]
[1730169027621,33.92566463,182.12,182.07,33.92566463]
[1730169027824,33.92566463,182.11,182.05,33.92566463]
[1730169028098,33.92566463,182.08,182.03,33.92566463]
[1730169028605,33.92566463,182.08,181.98,119.99973954]
[1730169028805,33.92566463,182.07,181.98,16.07407491]
[1730169029038,33.92566463,182.07,181.98,10.6809]
[1730169029227,33.92566463,182.08,181.98,10.6809]
[1730169029522,33.92566463,182.09,181.98,10.6809]
[1730169029722,33.92566463,182.08,181.98,10.6809]
[1730169030325,33.92566463,182.05,181.96,70.0]
[1730169030623,33.92566463,182.08,181.96,69.5]
[1730169030824,33.92566463,182.08,181.97,70.0]
[1730169031007,33.92566463,182.07,181.95,70.0]
[1730169031321,33.92566463,182.09,181.97,70.0]
[1730169031700,33.92566463,182.12,181.99,70.0]
[1730169031905,33.92566463,182.12,182.01,70.0]
[1730169032227,34.92566463,182.14,182.01,77.14034244]
[1730169033120,34.92566463,182.14,182.03,70.0]
[1730169033801,33.92566463,182.12,182.01,70.0]
[1730169034007,33.92566463,182.09,181.99,75.39317491]
[1730169034215,33.92566463,182.1,181.99,75.39317491]
[1730169034421,33.92566463,182.09,182.0,2.19852163]
[1730169034817,33.92566463,182.1,182.0,2.19852163]
[1730169035129,33.92566463,182.13,182.01,70.0]
[1730169035422,33.92566463,182.12,182.01,70.0]
[1730169035613,33.92566463,182.11,182.01,70.0]
[1730169035814,33.92566463,182.11,182.02,10.9893]
[1730169036028,33.92566463,182.12,182.02,10.9893]
[1730169036223,33.92566463,182.12,182.02,13.18767034]
[1730169036431,33.92566463,182.12,182.02,13.18766616]
[1730169036602,34.92566463,182.14,182.03,70.0]
[1730169036909,34.92566463,182.14,182.05,70.0]
[1730169037115,1.0,182.14,182.05,70.0]
[1730169037518,33.92566463,182.09,182.02,10.9893]
[1730169037717,33.92566463,182.11,182.02,13.18756611]
[1730169038033,33.92566463,182.13,182.02,13.18756611]
[1730169038341,33.92566463,182.13,182.03,70.0]
[1730169038634,33.92566463,182.12,182.03,70.0]
[1730169039327,34.92566463,182.14,182.03,70.0]
[1730169039529,33.92566463,182.12,182.03,70.0]
[1730169040035,33.92566463,182.09,182.02,10.9893]
[1730169040338,33.92566463,182.09,182.02,13.18768885]
[1730169040522,33.92566463,182.12,182.02,10.9893]
[1730169040727,33.92566463,182.12,182.02,13.18770704]
[1730169040924,33.92566463,182.11,182.02,13.18770704]
[1730169041134,33.92566463,182.13,182.04,70.0]
[1730169041314,34.92566463,182.14,182.04,70.0]
[1730169041507,33.92566463,182.13,182.04,70.0]
[1730169041736,34.92566463,182.14,182.04,70.0]
[1730169041914,1.0,182.14,182.04,70.0]
[1730169042112,1.0,182.14,182.06,70.0]
[1730169042331,1.0,182.14,182.08,70.0]
[1730169042938,33.92566463,182.11,182.04,5.39317491]
[1730169043229,33.92566463,182.11,182.03,70.0]
[1730169043436,33.92566463,182.13,182.04,2.19809442]
[1730169043630,33.92566463,182.12,182.04,2.19809442]
[1730169043826,33.92566463,182.13,182.04,2.19809442]
[1730169044030,33.92566463,182.12,182.04,2.19809442]
[1730169044234,33.92566463,182.13,182.04,2.19809442]
[1730169044440,33.92566463,182.12,182.04,2.19809442]
[1730169044741,33.92566463,182.12,182.02,13.18739442]
[1730169044932,33.92566463,182.13,182.03,7.14034244]